fUST/lending_fUST_20250303
["ID","MTS","AMOUNT","RATE_DAILY","PERIOD"]
[355166234,1740940255084,-823.0,0.00023294,2]
[355166235,1740940255093,-2423.3756134,0.00023461,2]
[355166236,1740940255103,-2260.90994748,0.00023535,2]
[355166237,1740940255113,-500.0,0.00023561,2]
[355166238,1740940255122,-500.0,0.00023561,2]
[355166239,1740940255133,-500.0,0.00023561,2]
[355166240,1740940255143,-500.0,0.00023561,2]
[355166241,1740940255152,-912.85,0.00023561,2]
[355166242,1740940255163,-500.0,0.00023561,2]
[355166243,1740940255172,-828.47,0.00023561,2]
[355166244,1740940255182,-500.0,0.00023561,2]
[355166245,1740940255192,-500.0,0.00023561,2]
[355166246,1740940255203,-500.0,0.00023561,2]
[355166247,1740940255213,-500.0,0.00023561,2]
[355166248,1740940255223,-259.49,0.00023561,2]
[355166249,1740940255233,-500.0,0.00023561,2]
[355166250,1740940255243,-225.28509673,0.00023561,2]
[355166251,1740940255252,-500.0,0.00023561,2]
[355166252,1740940255262,-1031.86,0.00023561,2]
[355166253,1740940255271,-500.0,0.00023561,2]
[355166254,1740940255282,-500.0,0.00023561,2]
[355166255,1740940255291,-500.0,0.00023561,2]
[355166256,1740940255301,-3879.37,0.00023561,2]
[355166257,1740940255311,-360.47,0.00023561,2]
[355166258,1740940255321,-707.14,0.00023561,2]
[355166259,1740940255330,-500.0,0.00023561,2]
[355166260,1740940255340,-3122.7,0.00023561,2]
[355166261,1740940255350,-1448.93,0.00023561,2]
[355166262,1740940255361,-1573.59,0.00023561,2]
[355166263,1740940255371,-930.19,0.00023561,2]
[355166264,1740940255381,-1845.32,0.00023561,2]
[355166265,1740940255391,-988.01,0.00023561,2]
[355166266,1740940255401,-558.59,0.00023561,2]
[355166267,1740940255414,-528.14,0.00023561,2]
[355166268,1740940255424,-557.12,0.00023561,2]
[355166269,1740940255434,-1327.83,0.00023561,2]
[355166270,1740940255444,-500.0,0.00023561,2]
[355166271,1740940255454,-500.0,0.00023561,2]
[355166272,1740940255464,-27349.43,0.00023561,2]
[355166273,1740940255474,-660.43,0.00023561,2]
[355166274,1740940255484,-836.15,0.00023561,2]
[355166275,1740940255494,-500.0,0.00023561,2]
[355166276,1740940255504,-1696.51,0.00023561,2]
[355166277,1740940255514,-1671.81,0.00023561,2]
[355166278,1740940255524,-620.62,0.00023561,2]
[355166279,1740940255534,-1806.44,0.00023561,2]
[355166280,1740940255544,-500.0,0.00023561,2]
[355166281,1740940255554,-500.0,0.00023561,2]
[355166282,1740940255564,-740.78,0.00023561,2]
[355166283,1740940255575,-500.0,0.00023561,2]
[355166284,1740940255585,-500.0,0.00023561,2]
[355166285,1740940255595,-500.0,0.00023561,2]
[355166286,1740940255604,-500.0,0.00023561,2]
[355166287,1740940255615,-1362.81,0.00023561,2]
[355166288,1740940255625,-1551.32,0.00023561,2]
[355166289,1740940255635,-499.28,0.00023561,2]
[355166290,1740940255645,-500.0,0.00023561,2]
[355166291,1740940255657,-500.0,0.00023561,2]
[355166292,1740940255666,-500.0,0.00023561,2]
[355166293,1740940255676,-160.0,0.00023658,2]
[355166294,1740940255685,-500.0,0.00023835,2]
[355166295,1740940255695,-500.0,0.00023835,2]
[355166296,1740940255705,-500.0,0.00023835,2]
[355166297,1740940255715,-629.43,0.00023835,2]
[355166298,1740940255724,-912.85,0.00023835,2]
[355166299,1740940255734,-583.84,0.00023835,2]
[355166300,1740940255744,-828.47,0.00023835,2]
[355166301,1740940255753,-500.0,0.00023835,2]
[355166302,1740940255765,-500.0,0.00023835,2]
[355166303,1740940255776,-500.0,0.00023835,2]
[355166304,1740940255786,-500.0,0.00023835,2]
[355166305,1740940255795,-500.0,0.00023835,2]
[355166306,1740940255805,-500.0,0.00023835,2]
[355166307,1740940255815,-1031.86,0.00023835,2]
[355166308,1740940255824,-419.79,0.00023835,2]
[355166309,1740940255834,-500.0,0.00023835,2]
[355166310,1740940255844,-500.0,0.00023835,2]
[355166311,1740940255856,-3879.37,0.00023835,2]
[355166312,1740940255865,-707.14,0.00023835,2]
[355166313,1740940255875,-500.0,0.00023835,2]
[355166314,1740940255885,-3122.7,0.00023835,2]
[355166315,1740940255895,-1448.93,0.00023835,2]
[355166316,1740940255907,-1573.59,0.00023835,2]
[355166317,1740940255918,-930.19,0.00023835,2]
[355166318,1740940255929,-1845.32,0.00023835,2]
[355166319,1740940255939,-988.01,0.00023835,2]
[355166320,1740940255948,-558.59,0.00023835,2]
[355166321,1740940255959,-528.14,0.00023835,2]
[355166322,1740940255970,-1327.83,0.00023835,2]
[355166323,1740940255980,-500.0,0.00023835,2]
[355166324,1740940255991,-500.0,0.00023835,2]
[355166325,1740940256002,-27349.43,0.00023835,2]
[355166326,1740940256012,-660.43,0.00023835,2]
[355166327,1740940256021,-500.0,0.00023835,2]
[355166328,1740940256032,-836.15,0.00023835,2]
[355166329,1740940256043,-1696.51,0.00023835,2]
[355166330,1740940256054,-1671.81,0.00023835,2]
[355166331,1740940256064,-620.62,0.00023835,2]
[355166332,1740940256073,-1806.44,0.00023835,2]
[355166333,1740940256084,-432.32750819,0.00023835,2]
[355166334,1740940256095,-500.0,0.00023835,2]
[355166335,1740940256105,-740.78,0.00023835,2]
[355166336,1740940256115,-500.0,0.00023835,2]
[355166337,1740940256125,-566.79,0.00023835,2]
[355166338,1740940256135,-500.0,0.00023835,2]
[355166339,1740940256145,-500.0,0.00023835,2]
[355166340,1740940256156,-1362.81,0.00023835,2]
[355166341,1740940256166,-1551.32,0.00023835,2]
[355166342,1740940256175,-500.0,0.00023835,2]
[355166343,1740940256184,-500.0,0.00023835,2]
[355166344,1740940256194,-500.0,0.00023835,2]
[355166345,1740940256203,-1663.31662493,0.00024,2]
[355166346,1740940256213,-41334.43461128,0.00024,2]
[355166347,1740940256223,-500.0,0.00024109,2]
[355166348,1740940256232,-500.0,0.00024109,2]
[355166349,1740940256241,-500.0,0.00024109,2]
[355166350,1740940256251,-912.85,0.00024109,2]
[355166351,1740940256261,-828.47,0.00024109,2]
[355166352,1740940256270,-500.0,0.00024109,2]
[355166353,1740940256280,-500.0,0.00024109,2]
[355166354,1740940256289,-500.0,0.00024109,2]
[355166355,1740940256299,-500.0,0.00024109,2]
[355166356,1740940256309,-500.0,0.00024109,2]
[355166357,1740940256318,-500.0,0.00024109,2]
[355166358,1740940256327,-1031.86,0.00024109,2]
[355166359,1740940256337,-361.04718833,0.00024109,2]
[355166360,1740940256346,-500.0,0.00024109,2]
[355166361,1740940256356,-3879.37,0.00024109,2]
[355166362,1740940256365,-707.14,0.00024109,2]
[355166363,1740940256375,-500.0,0.00024109,2]
[355166364,1740940256384,-500.0,0.00024109,2]
[355166365,1740940256393,-500.0,0.00024109,2]
[355166366,1740940256402,-283.79,0.00024109,2]
[355166367,1740940256414,-500.0,0.00024109,2]
[355166368,1740940256423,-3122.7,0.00024109,2]
[355166369,1740940256433,-1448.93,0.00024109,2]
[355166370,1740940256443,-1573.59,0.00024109,2]
[355166371,1740940256452,-930.19,0.00024109,2]
[355166372,1740940256461,-1845.32,0.00024109,2]
[355166373,1740940256470,-988.01,0.00024109,2]
[355166374,1740940256481,-558.59,0.00024109,2]
[355166375,1740940256490,-528.14,0.00024109,2]
[355166376,1740940256500,-1327.83,0.00024109,2]
[355166377,1740940256510,-500.0,0.00024109,2]
[355166378,1740940256519,-500.0,0.00024109,2]
[355166379,1740940256529,-27349.43,0.00024109,2]
[355166380,1740940256539,-660.43,0.00024109,2]
[355166381,1740940256548,-152.26,0.00024109,2]
[355166382,1740940256558,-836.15,0.00024109,2]
[355166383,1740940256567,-1696.51,0.00024109,2]
[355166384,1740940256576,-1671.81,0.00024109,2]
[355166385,1740940256586,-620.62,0.00024109,2]
[355166386,1740940256595,-1806.44,0.00024109,2]
[355166387,1740940256605,-500.0,0.00024109,2]
[355166388,1740940256615,-740.78,0.00024109,2]
[355166389,1740940256625,-548.64,0.00024109,2]
[355166390,1740940256634,-500.0,0.00024109,2]
[355166391,1740940256644,-500.0,0.00024109,2]
[355166392,1740940256654,-1362.81,0.00024109,2]
[355166393,1740940256664,-1551.32,0.00024109,2]
[355166394,1740940256674,-379.04399728,0.00024109,2]
[355166395,1740940256684,-500.0,0.00024109,2]
[355166396,1740940256693,-500.0,0.00024109,2]
[355166397,1740940256703,-2423.3756134,0.00024283,2]
[355166398,1740940256712,-500.0,0.00024383,2]
[355166399,1740940256721,-500.0,0.00024383,2]
[355166400,1740940256731,-500.0,0.00024383,2]
[355166401,1740940256741,-912.85,0.00024383,2]
[355166402,1740940256751,-828.47,0.00024383,2]
[355166403,1740940256762,-500.0,0.00024383,2]
[355166404,1740940256771,-500.0,0.00024383,2]
[355166405,1740940256784,-500.0,0.00024383,2]
[355166406,1740940256793,-500.0,0.00024383,2]
[355166407,1740940256802,-500.0,0.00024383,2]
[355166408,1740940256814,-500.0,0.00024383,2]
[355166409,1740940256823,-1031.86,0.00024383,2]
[355166410,1740940256833,-500.0,0.00024383,2]
[355166411,1740940256843,-3879.37,0.00024383,2]
[355166412,1740940256854,-707.14,0.00024383,2]
[355166413,1740940256863,-500.0,0.00024383,2]
[355166414,1740940256873,-3122.7,0.00024383,2]
[355166415,1740940256883,-1448.93,0.00024383,2]
[355166416,1740940256894,-1573.59,0.00024383,2]
[355166417,1740940256903,-930.19,0.00024383,2]
[355166418,1740940257040,-1845.32,0.00024383,2]
[355166419,1740940257051,-988.01,0.00024383,2]
[355166420,1740940257061,-558.59,0.00024383,2]
[355166421,1740940257071,-528.14,0.00024383,2]
[355166422,1740940257080,-1327.83,0.00024383,2]
[355166423,1740940257090,-500.0,0.00024383,2]
[355166424,1740940257100,-500.0,0.00024383,2]
[355166425,1740940257110,-27349.43,0.00024383,2]
[355166426,1740940257120,-660.43,0.00024383,2]
[355166427,1740940257129,-836.15,0.00024383,2]
[355166428,1740940257139,-1696.51,0.00024383,2]
[355166429,1740940257149,-1671.81,0.00024383,2]
[355166430,1740940257159,-620.62,0.00024383,2]
[355166431,1740940257169,-1806.44,0.00024383,2]
[355166432,1740940257180,-604.44909895,0.00024383,2]
[355166433,1740940257190,-740.78,0.00024383,2]
[355166434,1740940257200,-500.0,0.00024383,2]
[355166435,1740940257210,-500.0,0.00024383,2]
[355166436,1740940257220,-1362.81,0.00024383,2]
[355166437,1740940257230,-1551.32,0.00024383,2]
[355166438,1740940257240,-500.0,0.00024383,2]
[355166439,1740940257250,-500.0,0.00024383,2]
[355166440,1740940257259,-501.94280497,0.00024452,2]
[355166441,1740940257269,-1000.0,0.00024452,2]
[355166442,1740940257279,-1000.0,0.00024452,2]
[355166443,1740940257289,-500.0,0.00024452,2]
[355166444,1740940257298,-1000.0,0.00024452,2]
[355166445,1740940257308,-1000.0,0.00024452,2]
[355166446,1740940257318,-1000.0,0.00024452,2]
[355166447,1740940257327,-1000.0,0.00024452,2]
[355166448,1740940257337,-176.38040714,0.00024657,2]
[355166449,1740940257346,-151.02,0.00024657,2]
[355166450,1740940257356,-500.0,0.00024657,2]
[355166451,1740940257366,-912.85,0.00024657,2]
[355166452,1740940257375,-828.47,0.00024657,2]
[355166453,1740940257385,-500.0,0.00024657,2]
[355166454,1740940257395,-500.0,0.00024657,2]
[355166455,1740940257405,-500.0,0.00024657,2]
[355166456,1740940257415,-500.0,0.00024657,2]
[355166457,1740940257424,-644.03796704,0.00024657,2]
[355166458,1740940257434,-500.0,0.00024657,2]
[355166459,1740940257444,-1031.86,0.00024657,2]
[355166460,1740940257455,-500.0,0.00024657,2]
[355166461,1740940257465,-3879.37,0.00024657,2]
[355166462,1740940257474,-707.14,0.00024657,2]
[355166463,1740940257484,-500.0,0.00024657,2]
[355166464,1740940257494,-3122.7,0.00024657,2]
[355166465,1740940257504,-1448.93,0.00024657,2]
[355166466,1740940257513,-1573.59,0.00024657,2]
[355166467,1740940257524,-930.19,0.00024657,2]
[355166468,1740940257534,-1845.32,0.00024657,2]
[355166469,1740940257543,-988.01,0.00024657,2]
[355166470,1740940257553,-558.59,0.00024657,2]
[355166471,1740940257562,-528.14,0.00024657,2]
[355166472,1740940257572,-1312.40662949,0.00024657,2]
[355166473,1740940257853,-15.42337051,0.00024657,2]
[355166474,1740940257863,-500.0,0.00024657,2]
[355166475,1740940257873,-500.0,0.00024657,2]
[355166476,1740940257883,-21938.33454687,0.00024657,2]
[355166477,1740940257899,-5411.09545313,0.00024657,2]
[355166478,1740940257914,-660.43,0.00024657,2]
[355166479,1740940257932,-244.97454687,0.00024657,2]
[355166484,1740940495947,200.0,0.00027,120]
[355166516,1740941370115,-190.0,0.00017976,2]
[355166517,1740941370139,-300.0,0.0001902,2]
[355166518,1740941370165,-175.25,0.00019021,2]
[355166519,1740941370189,-500.0,0.00019021,2]
[355166520,1740941370212,-388.03602447,0.00019021,2]
[355166562,1740941432470,-300.0,0.0001902,2]
[355166563,1740941432483,-111.96397553,0.00019021,2]
[355166564,1740941432495,-500.0,0.00019021,2]
[355166565,1740941432506,-500.0,0.00019021,2]
[355166566,1740941432518,-714.013882,0.00019021,2]
[355166567,1740941432529,-500.0,0.00019021,2]
[355166568,1740941432540,-500.0,0.00019021,2]
[355166569,1740941432550,-500.0,0.00019021,2]
[355166570,1740941432561,-500.0,0.00019021,2]
[355166571,1740941432572,-500.0,0.00019021,2]
[355166572,1740941432583,-500.0,0.00019021,2]
[355166573,1740941432593,-500.0,0.00019021,2]
[355166574,1740941432607,-500.0,0.00019021,2]
[355166575,1740941432617,-500.0,0.00019021,2]
[355166576,1740941432628,-500.0,0.00019021,2]
[355166577,1740941432639,-500.0,0.00019021,2]
[355166579,1740941432650,-500.0,0.00019021,2]
[355166581,1740941432660,-500.0,0.00019021,2]
[355166582,1740941432672,-789.61576275,0.00019021,2]
[355166583,1740941432682,-713.61637103,0.00019021,2]
[355166584,1740941432693,-151.68166078,0.0002,2]
[355166585,1740941432703,-1111.911629,0.00020451,2]
[355166586,1740941432712,-173.1350364,0.00020675,2]
[355166587,1740941432721,-420.0,0.00020731,2]
[355166588,1740941432731,-10000.0,0.00020891,2]
[355166589,1740941432742,-250.0,0.00020908,2]
[355166590,1740941432752,-500.0,0.00021356,2]
[355166591,1740941432762,-1793.00296648,0.00021796,2]
[355166592,1740941432772,-176.62,0.00021807,2]
[355166593,1740941432782,-3000.0,0.00021817,2]
[355166594,1740941432792,-176.62,0.00021885,2]
[355166595,1740941432801,-176.62,0.00021885,2]
[355166596,1740941432811,-500.0,0.00021894,2]
[355166597,1740941432821,-500.0,0.00021894,2]
[355166598,1740941432832,-500.0,0.00021894,2]
[355166599,1740941432843,-526.831437,0.00021894,2]
[355166600,1740941432854,-500.0,0.00021894,2]
[355166601,1740941432868,-500.0,0.00021894,2]
[355166602,1740941432879,-500.0,0.00021894,2]
[355166603,1740941432888,-500.0,0.00021894,2]
[355166604,1740941432897,-500.0,0.00021894,2]
[355166605,1740941432907,-500.0,0.00021894,2]
[355166606,1740941432916,-500.0,0.00021894,2]
[355166607,1740941432930,-500.0,0.00021894,2]
[355166608,1740941432940,-500.0,0.00021894,2]
[355166609,1740941432950,-500.0,0.00021894,2]
[355166610,1740941432959,-500.0,0.00021894,2]
[355166611,1740941432968,-500.0,0.00021894,2]
[355166612,1740941432978,-500.0,0.00021894,2]
[355166613,1740941432988,-500.0,0.00021894,2]
[355166614,1740941432998,-174.36727903,0.00021894,2]
[355166615,1740941433045,-325.63272097,0.00021894,2]
[355166616,1740941433056,-500.0,0.00021894,2]
[355166617,1740941433066,-500.0,0.00021894,2]
[355166618,1740941433077,-500.0,0.00021894,2]
[355166619,1740941433088,-500.0,0.00021894,2]
[355166620,1740941433099,-500.0,0.00021894,2]
[355166621,1740941433109,-4322.00357372,0.000219,3]
[355166622,1740941433119,-176.62,0.00021907,2]
[355166623,1740941433130,-500.0,0.00021917,2]
[355166624,1740941433141,-500.0,0.00021917,2]
[355166625,1740941433151,-500.0,0.00021917,2]
[355166626,1740941433161,-500.0,0.00021917,2]
[355166627,1740941433175,-500.0,0.00021917,2]
[355166628,1740941433184,-500.0,0.00021917,2]
[355166629,1740941433199,-500.0,0.00021917,2]
[355166630,1740941433209,-263.09467796,0.00021917,2]
[355166631,1740941433218,-500.0,0.00021917,2]
[355166632,1740941433229,-500.0,0.00021917,2]
[355166633,1740941433241,-500.0,0.00021917,2]
[355166634,1740941433252,-558.92,0.00021917,2]
[355166635,1740941433262,-500.0,0.00021917,2]
[355166636,1740941433273,-500.0,0.00021917,2]
[355166637,1740941433283,-500.0,0.00021917,2]
[355166638,1740941433293,-500.0,0.00021917,2]
[355166639,1740941433303,-500.0,0.00021917,2]
[355166640,1740941433313,-500.0,0.00021917,2]
[355166641,1740941433323,-500.0,0.00021993,2]
[355166642,1740941433333,-202.0415469,0.00021994,2]
[355166643,1740941433343,-1707.68,0.0002219,2]
[355166644,1740941433352,-852.36,0.0002219,2]
[355166645,1740941433364,-500.0,0.0002219,2]
[355166646,1740941433374,-558.72,0.0002219,2]
[355166647,1740941433384,-500.0,0.0002219,2]
[355166648,1740941433394,-500.0,0.0002219,2]
[355166649,1740941433404,-500.0,0.0002219,2]
[355166650,1740941433415,-500.0,0.00022191,2]
[355166651,1740941433428,-500.0,0.00022191,2]
[355166652,1740941433438,-500.0,0.00022191,2]
[355166653,1740941433448,-558.92,0.00022191,2]
[355166654,1740941433459,-500.0,0.00022191,2]
[355166655,1740941433470,-500.0,0.00022191,2]
[355166656,1740941433480,-1414.08089362,0.00022232,2]
[355166657,1740941433491,-200.0,0.00022352,2]
[355166658,1740941433500,-220.0,0.00022352,2]
[355166659,1740941433510,-242.0,0.00022352,2]
[355166660,1740941433519,-266.2,0.00022352,2]
[355166661,1740941433529,-292.82,0.00022352,2]
[355166662,1740941433540,-322.102,0.00022352,2]
[355166663,1740941433561,-354.3122,0.00022352,2]
[355166664,1740941433579,-389.74342,0.00022352,2]
[355166665,1740941433590,-428.717762,0.00022352,2]
[355166666,1740941433600,-400.0,0.00022352,2]
[355166667,1740941433611,-500.0,0.00022361,2]
[355166668,1740941433621,-500.0,0.00022361,2]
[355166669,1740941433633,-500.0,0.00022361,2]
[355166670,1740941433644,-207.23858372,0.00022361,2]
[355166671,1740941433655,-406.26930614,0.00022361,2]
[355166672,1740941433666,-500.0,0.00022362,2]
[355166673,1740941433681,-500.0,0.00022362,2]
[355166674,1740941433693,-500.0,0.00022362,2]
[355166675,1740941433704,-584.7372218,0.00022362,2]
[355166676,1740941433716,-500.0,0.00022362,2]
[355166677,1740941433728,-500.0,0.00022362,2]
[355166678,1740941433740,-500.0,0.00022362,2]
[355166679,1740941433750,-500.0,0.00022362,2]
[355166680,1740941433761,-500.0,0.00022362,2]
[355166681,1740941433773,-500.0,0.00022362,2]
[355166682,1740941433784,-500.0,0.00022362,2]
[355166683,1740941433794,-500.0,0.00022362,2]
[355166684,1740941433807,-784.84,0.00022362,2]
[355166685,1740941433818,-500.46593654,0.00022362,2]
[355166686,1740941433828,-504.39967408,0.00022362,2]
[355166687,1740941433838,-500.0,0.00022362,2]
[355166688,1740941433852,-500.0,0.00022362,2]
[355166689,1740941433863,-500.0,0.00022362,2]
[355166690,1740941433877,-500.0,0.00022362,2]
[355166691,1740941433889,-503.7359123,0.00022362,2]
[355166692,1740941433901,-500.0,0.00022362,2]
[355166693,1740941433913,-500.0,0.00022362,2]
[355166694,1740941433930,-500.0,0.00022362,2]
[355166695,1740941433940,-999.55,0.00022362,2]
[355166696,1740941433951,-500.0,0.00022362,2]
[355166697,1740941433961,-500.0,0.00022362,2]
[355166698,1740941433971,-500.0,0.00022362,2]
[355166699,1740941433981,-500.0,0.00022362,2]
[355166700,1740941433992,-500.0,0.00022362,2]
[355166701,1740941434002,-500.0,0.00022362,2]
[355166702,1740941434012,-490.0,0.00022362,2]
[355166703,1740941434023,-500.0,0.00022362,2]
[355166704,1740941434034,-500.0,0.00022362,2]
[355166705,1740941434044,-500.0,0.00022362,2]
[355166706,1740941434054,-613.79440752,0.00022362,2]
[355166707,1740941434064,-500.0,0.00022362,2]
[355166708,1740941434075,-500.0,0.00022362,2]
[355166709,1740941434085,-500.0,0.00022362,2]
[355166710,1740941434095,-500.0,0.00022362,2]
[355166711,1740941434104,-500.0,0.00022362,2]
[355166712,1740941434115,-500.0,0.00022362,2]
[355166713,1740941434125,-1010.46,0.00022362,2]
[355166714,1740941434136,-506.82639246,0.00022362,2]
[355166715,1740941434146,-500.0,0.00022362,2]
[355166716,1740941434155,-500.0,0.00022362,2]
[355166717,1740941434166,-500.0,0.00022362,2]
[355166718,1740941434184,-1053.76,0.00022362,2]
[355166719,1740941434196,-500.0,0.00022362,2]
[355166720,1740941434206,-500.0,0.00022362,2]
[355166721,1740941434218,-500.0,0.00022362,2]
[355166722,1740941434228,-500.0,0.00022362,2]
[355166723,1740941434238,-500.0,0.00022362,2]
[355166724,1740941434249,-500.0,0.00022362,2]
[355166725,1740941434259,-500.0,0.00022362,2]
[355166726,1740941434270,-500.0,0.00022362,2]
[355166727,1740941434281,-794.97,0.00022362,2]
[355166728,1740941434291,-500.0,0.00022362,2]
[355166729,1740941434301,-500.0,0.00022362,2]
[355166730,1740941434311,-500.0,0.00022362,2]
[355166731,1740941434320,-500.0,0.00022362,2]
[355166732,1740941434331,-500.0,0.00022362,2]
[355166733,1740941434341,-500.0,0.00022362,2]
[355166734,1740941434352,-295.78506735,0.00022362,2]
[355166735,1740941434362,-500.0,0.00022362,2]
[355166736,1740941434372,-500.0,0.00022362,2]
[355166737,1740941434382,-500.0,0.00022362,2]
[355166738,1740941434392,-500.0,0.00022362,2]
[355166739,1740941434403,-500.0,0.00022362,2]
[355166740,1740941434413,-500.0,0.00022362,2]
[355166741,1740941434425,-500.0,0.00022362,2]
[355166742,1740941434435,-500.0,0.00022362,2]
[355166743,1740941434446,-500.0,0.00022362,2]
[355166744,1740941434456,-500.0,0.00022362,2]
[355166745,1740941434466,-2374.49,0.00022362,2]
[355166746,1740941434476,-974.5236998,0.00022363,2]
[355166747,1740941434488,-719.24,0.00022363,2]
[355166748,1740941434499,-500.0,0.00022363,2]
[355166749,1740941434508,-500.0,0.00022363,2]
[355166750,1740941434518,-458.08,0.00022363,2]
[355166751,1740941434529,-746.4,0.00022363,2]
[355166752,1740941434539,-500.0,0.00022364,2]
[355166753,1740941434549,-500.0,0.00022364,2]
[355166754,1740941434559,-500.0,0.00022364,2]
[355166755,1740941434570,-500.0,0.00022364,2]
[355166756,1740941434580,-500.0,0.00022364,2]
[355166757,1740941434591,-500.0,0.00022364,2]
[355166758,1740941434601,-401.83132978,0.00022364,2]
[355166807,1740941444935,-500.0,0.00021894,2]
[355166808,1740941444946,-129.15657961,0.00021894,2]
[355166872,1740941445884,-370.84342039,0.00021894,2]
[355166874,1740941445895,-500.0,0.00021894,2]
[355166876,1740941445905,-302.83831995,0.00021894,2]
[355166889,1740941446486,-197.16168005,0.00021894,2]
[355166890,1740941446496,-500.0,0.00021894,2]
[355166891,1740941446506,-549.64944797,0.00021894,2]
[355166892,1740941446516,-500.0,0.00022362,2]
[355166893,1740941446526,-500.0,0.00022363,2]
[355166894,1740941446536,-500.0,0.00022364,2]
[355166895,1740941446546,-588.42,0.00022364,2]
[355166896,1740941446557,-500.0,0.00022364,2]
[355166897,1740941446567,-500.0,0.00022364,2]
[355166898,1740941446576,-14875.8,0.00022364,2]
[355166899,1740941446585,-510.0185972,0.00022364,2]
[355166900,1740941446595,-500.0,0.00022364,2]
[355166901,1740941446604,-500.0,0.00022364,2]
[355166903,1740941446615,-500.0,0.00022364,2]
[355166904,1740941446625,-500.0,0.00022364,2]
[355166905,1740941446635,-500.0,0.00022364,2]
[355166906,1740941446644,-1117.62,0.00022364,2]
[355166907,1740941446653,-1226.54,0.00022364,2]
[355166908,1740941446663,-500.0,0.00022364,2]
[355166909,1740941446672,-500.0,0.00022364,2]
[355166910,1740941446683,-500.0,0.00022364,2]
[355166911,1740941446693,-500.0,0.00022364,2]
[355166912,1740941446702,-500.0,0.00022364,2]
[355166913,1740941446712,-500.0,0.00022364,2]
[355166914,1740941446722,-500.0,0.00022364,2]
[355166915,1740941446731,-636.68,0.00022364,2]
[355166916,1740941446741,-500.0,0.00022364,2]
[355166917,1740941446750,-501.82867103,0.00022364,2]
[355166918,1740941446760,-21652.24221246,0.00022365,2]
[355166919,1740941446771,-147318.01138441,0.00022365,2]
[355166920,1740941446796,-16100.0,0.00022365,2]
[355166921,1740941446813,-36929.74640313,0.00022365,2]
[355166922,1740941446825,-500.0,0.00022373,2]
[355166923,1740941446836,-500.0,0.00022373,2]
[355166924,1740941446847,-500.0,0.00022373,2]
[355166925,1740941446858,-500.0,0.00022373,2]
[355166926,1740941446868,-500.0,0.00022373,2]
[355166927,1740941446878,-1707.68,0.00022464,2]
[355166928,1740941446888,-852.36,0.00022464,2]
[355166929,1740941446899,-500.0,0.00022464,2]
[355166930,1740941446909,-558.72,0.00022464,2]
[355166931,1740941446919,-500.0,0.00022464,2]
[355166932,1740941446932,-500.0,0.00022465,2]
[355166933,1740941446942,-558.92,0.00022465,2]
[355166934,1740941446953,-500.0,0.00022465,2]
[355166935,1740941446963,-500.0,0.00022465,2]
[355166936,1740941446974,-500.0,0.00022473,2]
[355166937,1740941446984,-484.67512268,0.00022538,2]